{"text_format":"2","workbook":"xlsx","n_sheets":1,"sheets":["구매예정 물품내역서"],"not_rendered":{"charts":0,"images":0,"macros":0,"external_links":0,"defined_names":3,"comments":1,"pivot_tables":0},"unopened":[],"bounds":{"document_bytes":16777216,"sheet_cells":100000,"run_cost":"one","rows_first":2000,"rows_last":500,"rows_between":2000,"halvings":0,"cell_chars":16384,"cell_head_chars":4096},"cells_cut":0,"cells_raw":0,"read":"whole","date_system":"1900"}

{"sheet":"구매예정 물품내역서","index":0,"n_rows":187,"n_cols":7,"rows_kept":187,"cut":false,"hidden":false,"merged":[[1,0,1,6],[3,0,3,1],[15,0,161,0],[15,1,60,1],[15,2,23,2],[24,2,32,2],[33,2,38,2],[39,2,42,2],[43,2,48,2],[49,2,54,2],[55,2,60,2],[61,1,78,1],[61,2,66,2],[67,2,72,2],[73,2,78,2],[144,2,149,2],[79,1,97,1],[79,2,84,2],[85,2,97,2],[98,1,121,1],[98,2,115,2],[116,2,121,2],[177,2,185,2],[9,0,11,0],[174,1,175,1],[122,1,149,1],[150,1,161,1],[150,2,161,2],[162,1,165,1],[166,2,167,2],[168,2,169,2],[170,1,173,1],[170,2,172,2],[122,2,125,2],[126,2,130,2],[131,2,134,2],[135,2,138,2],[139,2,143,2],[166,1,169,1],[162,0,173,0],[174,0,176,0],[177,0,185,0],[177,1,185,1]]}
["[첨부2] 구매예정 물품내역서"]
["토너류 견적서"]
[]
["업체명",null,null,"사업자 등록번호",null,"대표자","(인)"]
[{"$nulls":5},"총 투찰금액",{"$f":"G6+G7","v":0}]
[{"$nulls":5},"복사용지 투찰금액",{"$f":"SUM(G10:G12)","v":0}]
[{"$nulls":5},"토너류 투찰금액",{"$f":"SUM(G16:G187)","v":0}]
[]
["구분","분류","규격","단위","예상수량","구매단가(VAT포함)","금액(VAT포함)"]
["복사용지(a)","A4 ","한솔제지\nA4 (80g, 2,500매)","BOX",1000,null,{"$f":"F10*E10","v":0}]
[null,"A3","Double A A3 (80g, 2,500매)","BOX",100,null,{"$f":"F11*E11","v":0}]
[null,"B4","Double A B4 (80g, 2,500매)","BOX",100,null,{"$f":"F12*E12","v":0}]
[]
[]
["물품구분","제조사","출력기기명","소모품 모델 (상품코드)","예상수량","구매단가(VAT포함)","금액(VAT포함)"]
["컬러","후지제록스","- DocuCentre-IV C2263\n- DocuCentre-IV C2263N\n- DocuCentre-IV C2265N","CT201434 (검정)",40,null,{"$f":"F16*E16","v":0}]
[null,null,null,"CT201435 (파랑)",30,null,{"$f":"F17*E17","v":0}]
[null,null,null,"CT201436 (빨강)",30,null,0]
[null,null,null,"CT201437 (노랑)",30,null,0]
[null,null,null,"드럼 CT350947 R1 (검정)",20,null,0]
[null,null,null,"드럼 CT350948 R2 (파랑)",20,null,0]
[null,null,null,"드럼 CT350949 R3 (빨강)",20,null,0]
[null,null,null,"드럼 CT350950 R4 (노랑)",20,null,0]
[null,null,null,"폐토너회수통 CWAA0777",45,null,0]
[null,null,"­ DocuCentre-V C2265\n- ApeosPort C2560","CT202488 (검정)",50,null,0]
[null,null,null,"CT202489 (파랑)",35,null,0]
[null,null,null,"CT202490 (빨강)",35,null,0]
[null,null,null,"CT202491 (노랑)",35,null,0]
[null,null,null," 드럼 CT351088 R1 (검정)",15,null,0]
[null,null,null," 드럼 CT351088 R2 (파랑)",15,null,0]
[null,null,null," 드럼 CT351088 R3 (빨강)",15,null,0]
[null,null,null," 드럼 CT351088 R4 (노랑)",15,null,0]
[null,null,null,"페토너회수통 CWAA0885",40,null,0]
[null,null,"­ DocuCentre SC2020","CT202396 (12.5K) (검정) 대용량",4,null,0]
[null,null,null,"CT202397 (14K) (파랑) 대용량",2,null,0]
[null,null,null,"CT202398 (14K) (빨강) 대용량",2,null,0]
[null,null,null,"CT202399 (14K) (노랑) 대용량",2,null,0]
[null,null,null,"드럼 CT351053 (색깔별로 각1개)",4,null,0]
[null,null,null,"폐토너회수통 CWAA0869",2,null,0]
[null,null,"- DocuPrint C3300DX\n- DocuPrint C2200","CT350674 (검정) 대용량",8,null,0]
[null,null,null,"CT350675 (파랑) 대용량",6,null,0]
[null,null,null,"CT350676 (빨강) 대용량",6,null,0]
[null,null,null,"CT350677 (노랑) 대용량",6,null,0]
[null,null,"- DocuPrint CP405d","CT202033 (검정) 대용량",4,null,0]
[null,null,null,"CT202034 (파랑) 대용량",4,null,0]
[null,null,null,"CT202035 (빨강) 대용량",4,null,0]
[null,null,null,"CT202036 (노랑) 대용량",4,null,0]
[null,null,null,"드럼 CT350983 4색합본",4,null,0]
[null,null,null,"폐토너회수통 EL500268",4,null,0]
[null,null,"- DocuPrint C5005d","CT201664 (검정)",2,null,0]
[null,null,null,"CT201665 (파랑)",2,null,0]
[null,null,null,"CT201666 (빨강)",2,null,0]
[null,null,null,"CT201667 (노랑)",2,null,0]
[null,null,null,"드럼 CT350894 (색깔별로 각1개)",2,null,0]
[null,null,null,"폐토너회수통 CWAA0742",2,null,0]
[null,null,"­ DocuPrint CM415 AP","CT202352 (검정) 대용량",2,null,0]
[null,null,null,"CT202353 (파랑) 대용량",2,null,0]
[null,null,null,"CT202354 (빨강) 대용량",2,null,0]
[null,null,null,"CT202355 (노랑) 대용량",2,null,0]
[null,null,null,"드럼 CT351066 4색합본",2,null,0]
[null,null,null,"폐토너회수통 EL500268",2,null,0]
[null,"삼성","- SL-X3280NR","CLT-K804S (검정)",4,null,0]
[null,null,null,"CLT-C804S (파랑)",4,null,0]
[null,null,null,"CLT-M804S (빨강)",4,null,0]
[null,null,null,"CLT-Y804S (노랑)",4,null,0]
[null,null,null,"드럼 CLT-R804 (색깔별로 각1개)",8,null,0]
[null,null,null,"폐토너회수통 CLT-W808",3,null,0]
[null,null,"- SL-X4250LX","CLT-K808S (검정)",2,null,0]
[null,null,null,"CLT-C808S (파랑)",2,null,0]
[null,null,null,"CLT-M808S (빨강)",2,null,0]
[null,null,null,"CLT-Y808S (노랑)",2,null,0]
[null,null,null,"드럼 CLT-R808 (색깔별로 각1개)",2,null,0]
[null,null,null,"폐토너회수통 CLT-W808",2,null,0]
[null,null,"- CLX-9201NA","CLT-K809S (검정)",5,null,0]
[null,null,null,"CLT-C809S (파랑)",4,null,0]
[null,null,null,"CLT-M809S (빨강)",4,null,0]
[null,null,null,"CLT-Y809S (노랑)",4,null,0]
[null,null,null,"드럼 CLT-R809 (색깔별로 각1개)",4,null,0]
[null,null,null,"폐토너회수통 CLT-W809",5,null,0]
[null,"EPSON","- L800","잉크 T673100",1,null,0]
[null,null,null,"잉크 T673200",1,null,{"$f":"F81*E81","v":0}]
[null,null,null,"잉크 T673300",1,null,0]
[null,null,null,"잉크 T673400",1,null,0]
[null,null,null,"잉크 T673500",1,null,0]
[null,null,null,"잉크 T673600",1,null,0]
[null,null,"- Stylus Pro 9900","EPSON 유지보수 탱크 C890191",4,null,0]
[null,null,null,"44\" Eco Matte Paper(1118*30m) 230g roll(무광)",4,null,0]
[null,null,null,"EPSON T596100",2,null,0]
[null,null,null,"EPSON T596200",2,null,0]
[null,null,null,"EPSON T596300",2,null,0]
[null,null,null,"EPSON T596400",2,null,0]
[null,null,null,"EPSON T596500",2,null,0]
[null,null,null,"EPSON T596600",2,null,0]
[null,null,null,"EPSON T596700",2,null,0]
[null,null,null,"EPSON T596800",2,null,0]
[null,null,null,"EPSON T596900",2,null,0]
[null,null,null,"EPSON T596A00",2,null,0]
[null,null,null,"EPSON T596B00",2,null,0]
[null,"렉스마크","- Lexmark CX510de\n- Lexmark CX410de\n- Lexmark CS510de","80C8HKE (검정) 대용량",8,null,0]
[null,null,null,"80C8HCE (파랑) 대용량",6,null,0]
[null,null,null,"80C8HME (빨강) 대용량",6,null,0]
[null,null,null,"80C8HYE (노랑) 대용량",6,null,0]
[null,null,null,"80C8XKE (검정) 특대용량",8,null,0]
[null,null,null,"80C8XCE (파랑) 특대용량",6,null,0]
[null,null,null,"80C8XME (빨강) 특대용량",6,null,0]
[null,null,null,"80C8XYE (노랑) 특대용량",6,null,0]
[null,null,null,"70C8XKE (검정) 특대용량",10,null,0]
[null,null,null,"70C8XCE (파랑) 특대용량",8,null,0]
[null,null,null,"70C8XME (빨강) 특대용량",8,null,0]
[null,null,null,"70C8XYE (노랑) 특대용량",8,null,0]
[null,null,null,"(공통) 드럼 70C0P00 4색합본",8,null,0]
[null,null,null,"(공통) 디벨로퍼 70C0D10 (검정)",10,null,0]
[null,null,null,"(공통) 디벨로퍼 70C0D20 (파랑)",8,null,0]
[null,null,null,"(공통) 디벨로퍼 70C0D30 (빨강)",8,null,0]
[null,null,null,"(공통) 디벨로퍼 70C0D40 (노랑)",8,null,0]
[null,null,null,"(공통) 폐토너회수통 C540X75G",15,null,0]
[null,null,"- Lexmark C748de","C746H1KG (검정) 대용량",2,null,0]
[null,null,null,"C748H1CG (파랑) 대용량",2,null,0]
[null,null,null,"C748H1MG (빨강) 대용량",2,null,0]
[null,null,null,"C748H1YG (노랑) 대용량",2,null,0]
[null,null,null,"드럼 C734X24G 4색합본",2,null,0]
[null,null,null,"폐토너회수통 C734X77G",3,null,0]
[null,"HP","- LaserJet Pro 300 Color M351a\n- LaserJet Pro 400 Color M451dn\n­ LaserJet Pro 400 Color M451nw","HP CE410X (검정) 대용량",20,null,0]
[null,null,null,"HP CE411A (파랑)",18,null,0]
[null,null,null,"HP CE412A (노랑)",18,null,0]
[null,null,null,"HP CE413A (빨강)",18,null,0]
[null,null,"- LaserJet CP3525n","CE250X (검정) 대용량",2,null,0]
[null,null,null,"CE251A (파랑)",2,null,0]
[null,null,null,"CE252A (노랑)",2,null,0]
[null,null,null,"CE253A (빨강)",2,null,0]
[null,null,null,"폐토너회수통 CE254A",2,null,0]
[null,null,"- LaserJet Pro M452\n- LaserJet Pro M452dn","CF410X (검정) 대용량",6,null,0]
[null,null,null,"CF411X (파랑) 대용량",5,null,0]
[null,null,null,"CF412X (노랑) 대용량",5,null,0]
[null,null,null,"CF413X (빨강) 대용량",5,null,0]
[null,null,"­ Color LaserJet M553","CF360X (검정) 대용량",2,null,0]
[null,null,null,"CF361X (파랑) 대용량",2,null,0]
[null,null,null,"CF362X (노랑) 대용량",2,null,0]
[null,null,null,"CF363X (빨강) 대용량",2,null,0]
[null,null,"- Color LaserJet CP4025\n- Color LaserJet CP4025dn","CE260A (검정)",6,null,0]
[null,null,null,"CE261A (파랑)",4,null,0]
[null,null,null,"CE262A (노랑)",4,null,0]
[null,null,null,"CE263A (빨강)",4,null,0]
[null,null,null,"폐토너회수통 CE265A",4,null,0]
[null,null,"- Color LaserJet CP4525\n- Color LaserJet CP4525n","CE260X (검정) 대용량",2,null,{"$f":"F145*E145","v":0}]
[null,null,null,"CE260A (검정)",2,null,0]
[null,null,null,"CE261A (파랑)",2,null,0]
[null,null,null,"CE262A (노랑)",2,null,0]
[null,null,null,"CE263A (빨강)",2,null,0]
[null,null,null,"폐토너회수통 CE265A",2,null,0]
[null,"EPSON","- SureColor SC-P10070","44\" Eco Matte Paper(1118*30m) 230g roll(무광)",5,null,0]
[null,null,null,"EPSON 유지보수 탱크 T619300",5,null,0]
[null,null,null,"EPSON T809000(밝은회색)",5,null,0]
[null,null,null,"EPSON T809100(포토검정)",5,null,0]
[null,null,null,"EPSON T809200(청록)",5,null,0]
[null,null,null,"EPSON T809300(선명한진홍)",5,null,0]
[null,null,null,"EPSON T809400(노랑)",5,null,0]
[null,null,null,"EPSON T809500(밝은청록)",5,null,0]
[null,null,null,"EPSON T809600(선명한밝은진홍)",5,null,0]
[null,null,null,"EPSON T809700(어두운회색)",5,null,0]
[null,null,null,"EPSON T809800(매트검정)",5,null,0]
[null,null,null,"EPSON T809900(회색)",5,null,0]
["흑백","HP","- LaserJet 5200tn\n- LaserJet 5200L","Q7516A",2,null,0]
[null,null,"- LaserJet P2035\n- LaserJet P2035n","CE505A",10,null,0]
[null,null,"- LaserJet P3015","CE255X 대용량",2,null,0]
[null,null,"- HP M28A","CF248A",2,null,0]
[null,"후지제록스","- Document Centre 236\n- DocuCentre-Ⅱ 2005\n- DocuCentre-Ⅲ 2007","CT200417",2,null,0]
[null,null,null,"드럼 CT350769",2,null,0]
[null,null,"­ DocuCentre-V 2060\n­ DocuCentre-V 3060","CT202508",6,null,0]
[null,null,null,"드럼 CT351089",5,null,0]
[null,"삼성","- SL-K3300NR","MLT-D704S",4,null,0]
[null,null,null,"드럼 MLT-R704",3,null,0]
[null,null,null,"폐토너회수통 MLT-W708",4,null,0]
[null,null,"- ML-3560","ML-3560DB",2,null,0]
["팩스","삼성","- CF-650\n- CF-650P","MLT-D105L",1,null,0]
[null,null,"- SF-760P","MLT-D101S",1,null,0]
[null,"삼성","- CF-560R","CF-D560RA (검정)",1,null,0]
["컬러프린터","후지제록스","­ DocuPrint CP315dw","CT202610 (검정) 대용량",2,null,0]
[null,null,null,"CT202611 (파랑) 대용량",2,null,0]
[null,null,null,"CT202612 (빨강) 대용량",2,null,0]
[null,null,null,"CT202613 (노랑) 대용량",2,null,0]
[null,null,null,"드럼 CT351100 (검정)",2,null,0]
[null,null,null,"드럼 CT351101 (파랑)",2,null,0]
[null,null,null,"드럼 CT351102 (빨강)",2,null,0]
[null,null,null,"드럼 CT351103 (노랑)",2,null,0]
[null,null,null,"폐토너회수통 EL500293",2,null,0]
["흑백","후지제록스","­ DocuPrint 3105","CT350936",1,null,0]